fUSD/lending_fUSD_20260615
["ID","MTS","AMOUNT","RATE_DAILY","PERIOD"]
[425121293,1781532534000,-500.0,0.00012135,2]
[425121294,1781532534000,-500.0,0.00012135,2]
[425121295,1781532534000,-500.0,0.00012135,2]
[425121297,1781532534000,-500.0,0.00012135,2]
[425121287,1781532534000,-330.24632547,0.00012135,2]
[425121305,1781532539000,-500.0,0.00012135,2]
[425121306,1781532539000,-500.0,0.00012135,2]
[425121302,1781532539000,-500.0,0.00012135,2]
[425121307,1781532539000,-500.0,0.00012135,2]
[425121304,1781532539000,-500.0,0.00012135,2]
[425121301,1781532539000,-500.0,0.00012135,2]
[425121299,1781532539000,-24.07135221,0.00012135,2]
[425121303,1781532539000,-500.0,0.00012135,2]
[425121309,1781532539000,-500.0,0.00012135,2]
[425121300,1781532539000,-500.0,0.00012135,2]
[425121311,1781532539000,-598.14819513,0.00012135,2]
[425121317,1781532539000,-150.0,0.00012136,2]
[425121316,1781532539000,-300.0,0.00012136,2]
[425121319,1781532539000,-1472.57314046,0.00012138,2]
[425121314,1781532539000,-205.2073122,0.00012135,2]
[425121318,1781532539000,-250.0,0.00012136,2]
[425121315,1781532539000,-500.0,0.00012135,2]
[425121312,1781532539000,-500.0,0.00012135,2]
[425121308,1781532539000,-500.0,0.00012135,2]
[425121313,1781532539000,-500.0,0.00012135,2]
[425121310,1781532539000,-500.0,0.00012135,2]
[425121325,1781532545000,150.0,0.00012135,2]
[425121324,1781532545000,-166.66,0.00012159,2]
[425121323,1781532545000,-216.09656886,0.00012151,2]
[425121320,1781532545000,-378.41865004,0.00012138,2]
[425121322,1781532545000,-166.66,0.00012147,2]
[425121321,1781532545000,-160.4331554,0.00012138,2]
[425121326,1781532549000,-150.0,0.0001222,2]
[425121327,1781532549000,-38.86218871,0.000123,2]
[425121346,1781532637000,-616.8202892,0.00011865,2]
[425121352,1781532638000,-1549.2795907,0.00011865,2]
[425121372,1781532638000,-166.66,0.00012393,2]
[425121359,1781532638000,-127.39500375,0.00012135,2]
[425121365,1781532638000,-315.0,0.00012165,2]
[425121355,1781532638000,-150.0,0.00012101,2]
[425121364,1781532638000,-320.0,0.00012165,2]
[425121358,1781532638000,-24.60499625,0.00012135,2]
[425121362,1781532638000,-313.0,0.0001214,2]
[425121363,1781532638000,-312.0,0.00012165,2]
[425121360,1781532638000,-202.807171,0.0001214,2]
[425121357,1781532638000,-152.0,0.00012135,2]
[425121356,1781532638000,-314.0,0.00012135,2]
[425121354,1781532638000,-113.01220198,0.00011982,2]
[425121353,1781532638000,-36.98779802,0.00011982,2]
[425121350,1781532638000,-6226.23626858,0.00011865,2]
[425121351,1781532638000,-1196.24900927,0.00011865,2]
[425121349,1781532638000,-3765.97484225,0.00011865,2]
[425121367,1781532638000,-267.0,0.0001222,2]
[425121361,1781532638000,-109.192829,0.0001214,2]
[425121370,1781532638000,-1029.27677558,0.000123,2]
[425121366,1781532638000,-311.0,0.00012165,2]
[425121386,1781532638000,-151.0,0.00012401,2]
[425121385,1781532638000,-312.0,0.00012401,2]
[425121381,1781532638000,-151.0,0.00012401,2]
[425121384,1781532638000,-316.0,0.00012401,2]
[425121378,1781532638000,-318.0,0.00012401,2]
[425121383,1781532638000,-2395.5,0.00012401,2]
[425121387,1781532638000,-286.22,0.00012515,2]
[425121379,1781532638000,-313.0,0.00012401,2]
[425121380,1781532638000,-312.0,0.00012401,2]
[425121377,1781532638000,-314.0,0.00012401,2]
[425121376,1781532638000,-1385.63,0.00012401,2]
[425121373,1781532638000,-310.0,0.000124,2]
[425121369,1781532638000,-100.88473571,0.000123,2]
[425121374,1781532638000,-234.56682522,0.000124,2]
[425121371,1781532638000,-174.77,0.00012329,2]
[425121375,1781532638000,-79.43317478,0.000124,2]
[425121382,1781532638000,-321.0,0.00012401,2]
[425121368,1781532638000,-313.0,0.00012291,2]
[425121400,1781532639000,-154.70902673,0.00013178,2]
[425121406,1781532639000,-250.0,0.00013233,2]
[425121405,1781532639000,-3408.93898036,0.00013231,2]
[425121402,1781532639000,-6454.59,0.00013189,2]
[425121410,1781532639000,-1267.11995351,0.00013246,2]
[425121407,1781532639000,-18196.23801974,0.00013246,2]
[425121404,1781532639000,-2000.0,0.00013223,2]
[425121409,1781532639000,-46215.11139667,0.00013246,2]
[425121401,1781532639000,-500.0,0.00013178,2]
[425121403,1781532639000,-286.22,0.0001321,2]
[425121408,1781532639000,-74208.10584924,0.00013246,2]
[425121397,1781532639000,-300.0,0.00013051,2]
[425121398,1781532639000,-193.0,0.00013051,2]
[425121394,1781532639000,-166.66,0.00012884,2]
[425121393,1781532639000,-150.0,0.00012719,2]
[425121392,1781532639000,-165.74218476,0.00012719,2]
[425121395,1781532639000,-166.66,0.00012962,2]
[425121388,1781532639000,-150.0,0.00012534,2]
[425121411,1781532639000,-5223.64883449,0.00013246,2]
[425121390,1781532639000,-166.66,0.00012638,2]
[425121389,1781532639000,-166.66,0.00012561,2]
[425121396,1781532639000,-1385.63,0.00013021,2]
[425121399,1781532639000,-2500.0,0.00013146,2]
[425121412,1781532639000,-840.6561575,0.00013246,2]
[425121391,1781532639000,-1385.63,0.00012711,2]
[425121414,1781532639000,-2726.52883703,0.00013246,2]
[425121438,1781532639000,-745.795204,0.00013389,2]
[425121437,1781532639000,-452.897602,0.00013389,2]
[425121436,1781532639000,-160.0,0.00013389,2]
[425121432,1781532639000,-500.0,0.0001335,2]
[425121435,1781532639000,-209.338276,0.00013389,2]
[425121433,1781532639000,-1852.42,0.00013355,2]
[425121434,1781532639000,-166.66,0.00013363,2]
[425121430,1781532639000,-193.0,0.0001335,2]
[425121429,1781532639000,-153.0,0.00013346,2]
[425121428,1781532639000,-1064.7728,0.00013346,2]
[425121427,1781532639000,-1321.9915,0.00013346,2]
[425121431,1781532639000,-250.0,0.0001335,2]
[425121425,1781532639000,-15382.1196835,0.00013345,2]
[425121426,1781532639000,-5934.0484212,0.00013345,2]
[425121416,1781532639000,-21930.4811692,0.00013246,2]
[425121418,1781532639000,-170.20819984,0.00013278,2]
[425121417,1781532639000,-704.24887089,0.00013278,2]
[425121421,1781532639000,-151.0,0.00013278,2]
[425121413,1781532639000,-5066.79958262,0.00013246,2]
[425121423,1781532639000,-15852.00858819,0.00013308,2]
[425121424,1781532639000,-1385.63,0.00013331,2]
[425121420,1781532639000,-151.0,0.00013278,2]
[425121422,1781532639000,-151.0,0.00013278,2]
[425121419,1781532639000,-971.63069432,0.00013278,2]
[425121484,1781532640000,-150.0,0.00013533,2]
[425121467,1781532640000,-150.0,0.00013488,2]
[425121468,1781532640000,-150.0,0.00013488,2]
[425121465,1781532640000,-219.5526394,0.00013488,2]
[425121469,1781532640000,-219.5526394,0.00013503,2]
[425121471,1781532640000,-219.5526394,0.00013518,2]
[425121470,1781532640000,-215.16158661,0.00013503,2]
[425121475,1781532640000,-160.0,0.00013522,2]
[425121478,1781532640000,-160.0,0.00013522,2]
[425121476,1781532640000,-417.106416,0.00013522,2]
[425121466,1781532640000,-215.16158661,0.00013488,2]
[425121490,1781532640000,-219.5526394,0.00013548,2]
[425121485,1781532640000,-150.0,0.00013535,2]
[425121477,1781532640000,-674.212833,0.00013522,2]
[425121479,1781532640000,-321.87503,0.00013522,2]
[425121482,1781532640000,-219.5526394,0.00013533,2]
[425121483,1781532640000,-215.16158661,0.00013533,2]
[425121487,1781532640000,-150.0,0.00013541,2]
[425121486,1781532640000,-620.57,0.00013538,2]
[425121488,1781532640000,-309.7,0.00013545,2]
[425121491,1781532640000,-215.16158661,0.00013548,2]
[425121489,1781532640000,-312.15,0.00013547,2]
[425121474,1781532640000,-150.0,0.0001352,2]
[425121480,1781532640000,-483.750061,0.00013522,2]
[425121463,1781532640000,-150.0,0.00013488,2]
[425121455,1781532640000,-150.0,0.00013488,2]
[425121472,1781532640000,-215.16158661,0.00013518,2]
[425121439,1781532640000,-169.939995,0.00013389,2]
[425121441,1781532640000,-151.0,0.00013408,2]
[425121440,1781532640000,-151.0,0.00013408,2]
[425121442,1781532640000,-1600.0,0.0001341,2]
[425121445,1781532640000,-500.0,0.00013452,2]
[425121443,1781532640000,-234.090934,0.00013425,2]
[425121446,1781532640000,-160.0,0.00013455,2]
[425121447,1781532640000,-176.352822,0.00013455,2]
[425121444,1781532640000,-202.529618,0.00013425,2]
[425121448,1781532640000,-192.705645,0.00013455,2]
[425121450,1781532640000,-290.813492,0.00013455,2]
[425121449,1781532640000,-160.0,0.00013455,2]
[425121452,1781532640000,-3408.93898034,0.00013469,2]
[425121462,1781532640000,-152.39496405,0.00013488,2]
[425121451,1781532640000,-421.626984,0.00013455,2]
[425121492,1781532640000,-150.0,0.00013553,2]
[425121456,1781532640000,-150.0,0.00013488,2]
[425121460,1781532640000,-150.0,0.00013488,2]
[425121458,1781532640000,-150.0,0.00013488,2]
[425121459,1781532640000,-150.0,0.00013488,2]
[425121453,1781532640000,-15852.00858818,0.00013485,2]
[425121461,1781532640000,-150.0,0.00013488,2]
[425121454,1781532640000,-150.0,0.00013488,2]
[425121457,1781532640000,-150.0,0.00013488,2]
[425121464,1781532640000,-204.09879041,0.00013488,2]
[425121473,1781532640000,-150.0,0.0001352,2]
[425121494,1781532640000,-219.5526394,0.00013563,2]
[425121481,1781532640000,-150.0,0.00013528,2]
[425121495,1781532640000,-215.16158661,0.00013563,2]
[425121523,1781532640000,-219.5526394,0.00013654,2]
[425121526,1781532640000,-15852.00858818,0.00013662,2]
[425121524,1781532640000,-215.16158661,0.00013654,2]
[425121525,1781532640000,-218.49,0.00013659,2]
[425121533,1781532640000,-150.0,0.00013683,2]
[425121529,1781532640000,-215.16158661,0.00013669,2]
[425121530,1781532640000,-150.0,0.00013669,2]
[425121531,1781532640000,-150.0,0.00013675,2]
[425121537,1781532640000,-150.0,0.0001369,2]
[425121532,1781532640000,-150.0,0.00013675,2]
[425121536,1781532640000,-215.16158661,0.00013684,2]
[425121539,1781532640000,-519.4,0.00013698,2]
[425121534,1781532640000,-150.0,0.00013683,2]
[425121535,1781532640000,-219.5526394,0.00013684,2]
[425121538,1781532640000,-362.36559013,0.00013698,2]
[425121541,1781532640000,-515.72962674,0.00013698,2]
[425121551,1781532640000,-9999.99,0.00013699,2]
[425121552,1781532640000,-9999.99,0.00013699,2]
[425121540,1781532640000,-500.0,0.00013698,2]
[425121543,1781532640000,-500.0,0.00013698,2]
[425121547,1781532640000,-500.0,0.00013698,2]
[425121548,1781532640000,-321.0,0.00013698,2]
[425121545,1781532640000,-178.91382127,0.00013698,2]
[425121550,1781532640000,-326.79,0.00013699,2]
[425121493,1781532640000,-150.0,0.00013553,2]
[425121522,1781532640000,-150.0,0.00013651,2]
[425121520,1781532640000,-150.0,0.0001365,2]
[425121549,1781532640000,-200.0,0.00013699,2]
[425121519,1781532640000,-150.0,0.00013648,2]
[425121521,1781532640000,-150.0,0.00013651,2]
[425121497,1781532640000,-150.0,0.00013576,2]
[425121502,1781532640000,-150.0,0.00013585,2]
[425121505,1781532640000,-215.16158661,0.00013594,2]
[425121503,1781532640000,-150.0,0.00013585,2]
[425121504,1781532640000,-219.5526394,0.00013594,2]
[425121499,1781532640000,-215.16158661,0.00013578,2]
[425121501,1781532640000,-150.0,0.00013581,2]
[425121500,1781532640000,-150.0,0.00013578,2]
[425121498,1781532640000,-219.5526394,0.00013578,2]
[425121506,1781532640000,-150.0,0.00013595,2]
[425121514,1781532640000,-150.0,0.00013624,2]
[425121496,1781532640000,-150.0,0.00013569,2]
[425121508,1781532640000,-215.16158661,0.00013609,2]
[425121528,1781532640000,-219.5526394,0.00013669,2]
[425121527,1781532640000,-150.0,0.00013664,2]
[425121518,1781532640000,-1385.63,0.00013641,2]
[425121511,1781532640000,-150.0,0.00013618,2]
[425121517,1781532640000,-215.16158661,0.00013639,2]
[425121515,1781532640000,-150.0,0.00013628,2]
[425121512,1781532640000,-219.5526394,0.00013624,2]
[425121509,1781532640000,-150.0,0.00013609,2]
[425121510,1781532640000,-150.0,0.00013618,2]
[425121507,1781532640000,-219.5526394,0.00013609,2]
[425121513,1781532640000,-215.16158661,0.00013624,2]
[425121516,1781532640000,-219.5526394,0.00013639,2]
[425121590,1781532641000,-150.0,0.00013771,2]
[425121587,1781532641000,-166.66,0.00013765,2]
[425121595,1781532641000,-150.0,0.00013787,2]
[425121596,1781532641000,-219.5526394,0.0001379,2]
[425121603,1781532641000,-150.0,0.00013812,2]
[425121585,1781532641000,-215.16158661,0.0001376,2]
[425121584,1781532641000,-219.5526394,0.0001376,2]
[425121583,1781532641000,-150.0,0.00013755,2]
[425121578,1781532641000,-219.5526394,0.00013745,2]
[425121586,1781532641000,-150.0,0.0001376,2]
[425121589,1781532641000,-150.0,0.00013769,2]
[425121598,1781532641000,-500.0,0.00013804,2]
[425121594,1781532641000,-150.0,0.00013781,2]
[425121592,1781532641000,-215.16158661,0.00013775,2]
[425121593,1781532641000,-150.0,0.00013781,2]
[425121591,1781532641000,-219.5526394,0.00013775,2]
[425121599,1781532641000,-219.5526394,0.00013806,2]
[425121606,1781532641000,-150.0,0.00013813,2]
[425121600,1781532641000,-215.16158661,0.00013806,2]
[425121607,1781532641000,-150.0,0.00013815,2]
[425121597,1781532641000,-215.16158661,0.0001379,2]
[425121604,1781532641000,-255.0,0.00013813,2]
[425121582,1781532641000,-150.0,0.00013752,2]
[425121588,1781532641000,-246.78157118,0.00013768,2]
[425121580,1781532641000,-150.0,0.00013748,2]
[425121565,1781532641000,-500.0,0.00013707,2]
[425121579,1781532641000,-215.16158661,0.00013745,2]
[425121553,1781532641000,-2675.81,0.00013699,2]
[425121556,1781532641000,-7229.41,0.00013699,2]
[425121554,1781532641000,-150.99,0.00013699,2]
[425121563,1781532641000,-215.16158661,0.000137,2]
[425121561,1781532641000,-9999.99,0.00013699,2]
[425121559,1781532641000,-501.09,0.00013699,2]
[425121558,1781532641000,-299.99,0.00013699,2]
[425121562,1781532641000,-219.5526394,0.000137,2]
[425121555,1781532641000,-3230.95,0.00013699,2]
[425121557,1781532641000,-2887.32,0.00013699,2]
[425121560,1781532641000,-6288.61,0.00013699,2]
[425121581,1781532641000,-150.0,0.00013748,2]
[425121564,1781532641000,-150.0,0.00013702,2]
[425121568,1781532641000,-215.16158661,0.00013715,2]
[425121567,1781532641000,-219.5526394,0.00013715,2]
[425121570,1781532641000,-150.0,0.00013716,2]
[425121571,1781532641000,-150.0,0.00013716,2]
[425121572,1781532641000,-150.0,0.00013722,2]
[425121569,1781532641000,-150.0,0.00013715,2]
[425121573,1781532641000,-500.0,0.00013726,2]
[425121574,1781532641000,-219.5526394,0.0001373,2]
[425121575,1781532641000,-215.16158661,0.0001373,2]
[425121577,1781532641000,-195.646548,0.00013743,2]
[425121576,1781532641000,-150.0,0.00013731,2]
[425121566,1781532641000,-3408.93898034,0.00013708,2]
[425121602,1781532641000,-150.0,0.00013809,2]
[425121628,1781532641000,-150.0,0.00013879,2]
[425121605,1781532641000,-150.0,0.00013813,2]
[425121638,1781532641000,-150.0,0.00013911,2]
[425121636,1781532641000,-286.22,0.00013905,2]
[425121637,1781532641000,-150.0,0.00013909,2]
[425121640,1781532641000,-215.16158661,0.00013912,2]
[425121641,1781532641000,-150.0,0.00013916,2]
[425121642,1781532641000,-219.5526394,0.00013927,2]
[425121647,1781532641000,-219.5526394,0.00013942,2]
[425121649,1781532641000,-150.0,0.00013944,2]
[425121644,1781532641000,-150.0,0.00013928,2]
[425121643,1781532641000,-215.16158661,0.00013927,2]
[425121645,1781532641000,-150.0,0.00013933,2]
[425121648,1781532641000,-215.16158661,0.00013942,2]
[425121650,1781532641000,-150.0,0.00013944,2]
[425121652,1781532641000,-150.0,0.00013956,2]
[425121651,1781532641000,-3408.93898034,0.00013946,2]
[425121654,1781532641000,-215.16158661,0.00013957,2]
[425121653,1781532641000,-219.5526394,0.00013957,2]
[425121658,1781532641000,-150.0,0.00013974,2]
[425121655,1781532641000,-150.0,0.00013959,2]
[425121659,1781532641000,-150.0,0.00013976,2]
[425121657,1781532641000,-215.16158661,0.00013972,2]
[425121656,1781532641000,-219.5526394,0.00013972,2]
[425121601,1781532641000,-150.0,0.00013806,2]
[425121635,1781532641000,-150.0,0.00013896,2]
[425121633,1781532641000,-219.5526394,0.00013896,2]
[425121646,1781532641000,-620.57,0.00013941,2]
[425121632,1781532641000,-150.0,0.00013893,2]
[425121634,1781532641000,-215.16158661,0.00013896,2]
[425121610,1781532641000,-620.57,0.00013823,2]
[425121609,1781532641000,-215.16158661,0.00013821,2]
[425121611,1781532641000,-150.0,0.0001383,2]
[425121608,1781532641000,-219.5526394,0.00013821,2]
[425121613,1781532641000,-215.16158661,0.00013836,2]
[425121612,1781532641000,-219.5526394,0.00013836,2]
[425121614,1781532641000,-15852.00858818,0.00013839,2]
[425121615,1781532641000,-150.0,0.0001384,2]
[425121624,1781532641000,-150.0,0.00013862,2]
[425121621,1781532641000,-312.15,0.00013858,2]
[425121619,1781532641000,-150.0,0.00013851,2]
[425121616,1781532641000,-150.0,0.00013846,2]
[425121622,1781532641000,-150.0,0.00013862,2]
[425121631,1781532641000,-215.16158661,0.00013881,2]
[425121639,1781532641000,-219.5526394,0.00013912,2]
[425121629,1781532641000,-150.0,0.00013879,2]
[425121625,1781532641000,-219.5526394,0.00013866,2]
[425121623,1781532641000,-150.0,0.00013862,2]
[425121630,1781532641000,-219.5526394,0.00013881,2]
[425121620,1781532641000,-150.0,0.00013852,2]
[425121627,1781532641000,-150.0,0.00013873,2]
[425121626,1781532641000,-215.16158661,0.00013866,2]
[425121617,1781532641000,-219.5526394,0.00013851,2]
[425121618,1781532641000,-215.16158661,0.00013851,2]
[425121711,1781532642000,-175.96,0.00014068,2]
[425121701,1781532642000,-617.587639,0.00014058,2]
[425121707,1781532642000,-219.5526394,0.00014063,2]
[425121697,1781532642000,-150.0,0.0001405,2]
[425121698,1781532642000,-150.0,0.0001405,2]
[425121693,1781532642000,-150.0,0.00014044,2]
[425121694,1781532642000,-219.5526394,0.00014048,2]
[425121696,1781532642000,-309.7,0.00014049,2]
[425121690,1781532642000,-150.0,0.00014033,2]
[425121691,1781532642000,-150.0,0.00014042,2]
[425121689,1781532642000,-215.16158661,0.00014033,2]
[425121687,1781532642000,-620.57,0.00014032,2]
[425121700,1781532642000,-274.804968,0.00014058,2]
[425121717,1781532642000,-500.0,0.00014069,2]
[425121703,1781532642000,-500.0,0.00014061,2]
[425121705,1781532642000,-935.0,0.00014061,2]
[425121709,1781532642000,-519.4,0.00014068,2]
[425121702,1781532642000,-500.0,0.00014061,2]
[425121704,1781532642000,-500.0,0.00014061,2]
[425121713,1781532642000,-500.0,0.00014068,2]
[425121715,1781532642000,-500.0,0.00014069,2]
[425121719,1781532642000,-500.0,0.00014069,2]
[425121725,1781532642000,-366.22778558,0.00014069,2]
[425121721,1781532642000,-500.0,0.00014069,2]
[425121726,1781532642000,-500.0,0.00014069,2]
[425121688,1781532642000,-219.5526394,0.00014033,2]
[425121699,1781532642000,-150.0,0.00014055,2]
[425121695,1781532642000,-215.16158661,0.00014048,2]
[425121660,1781532642000,-150.0,0.00013976,2]
[425121686,1781532642000,-89032.6404,0.00014019,2]
[425121662,1781532642000,-312.15,0.00013987,2]
[425121661,1781532642000,-150.0,0.00013986,2]
[425121723,1781532642000,-500.0,0.00014069,2]
[425121663,1781532642000,-150.0,0.00013987,2]
[425121668,1781532642000,-1500.0,0.00014,2]
[425121669,1781532642000,-500.0,0.00014,2]
[425121672,1781532642000,-215.16158661,0.00014002,2]
[425121665,1781532642000,-219.5526394,0.00013987,2]
[425121666,1781532642000,-215.16158661,0.00013987,2]
[425121667,1781532642000,-150.0,0.00013987,2]
[425121671,1781532642000,-219.5526394,0.00014002,2]
[425121670,1781532642000,-150.0,0.00014001,2]
[425121692,1781532642000,-150.0,0.00014042,2]
[425121673,1781532642000,-150.0,0.00014003,2]
[425121674,1781532642000,-150.0,0.00014009,2]
[425121675,1781532642000,-150.0,0.00014009,2]
[425121685,1781532642000,-65802.14568044,0.00014019,2]
[425121679,1781532642000,-219.5526394,0.00014017,2]
[425121676,1781532642000,-150.0,0.00014014,2]
[425121684,1781532642000,-43987.14998602,0.00014019,2]
[425121678,1781532642000,-150.0,0.00014017,2]
[425121677,1781532642000,-15852.00858818,0.00014016,2]
[425121681,1781532642000,-3000.0,0.00014017,2]
[425121680,1781532642000,-215.16158661,0.00014017,2]
[425121682,1781532642000,-9448.3520623,0.00014019,2]
[425121683,1781532642000,-24934.35057994,0.00014019,2]
[425121664,1781532642000,-150.0,0.00013987,2]
[425121728,1781532642000,-500.0,0.00014069,2]
[425121727,1781532642000,-500.0,0.00014069,2]
[425121730,1781532642000,-500.0,0.00014069,2]
[425121767,1781532642000,-150.0,0.00014123,2]
[425121768,1781532642000,-240.481122,0.00014128,2]
[425121765,1781532642000,-219.5526394,0.00014123,2]
[425121766,1781532642000,-215.16158661,0.00014123,2]
[425121770,1781532642000,-150.0,0.0001413,2]
[425121769,1781532642000,-396.563853,0.00014128,2]
[425121772,1781532642000,-219.5526394,0.00014139,2]
[425121773,1781532642000,-215.16158661,0.00014139,2]
[425121783,1781532642000,-312.15,0.00014169,2]
[425121775,1781532642000,-150.0,0.00014139,2]
[425121774,1781532642000,-150.0,0.00014139,2]
[425121777,1781532642000,-219.5526394,0.00014154,2]
[425121784,1781532642000,-150.0,0.00014172,2]
[425121781,1781532642000,-219.5526394,0.00014169,2]
[425121780,1781532642000,-166.66,0.00014166,2]
[425121779,1781532642000,-296.233406,0.00014166,2]
[425121776,1781532642000,-150.0,0.00014143,2]
[425121782,1781532642000,-215.16158661,0.00014169,2]
[425121778,1781532642000,-215.16158661,0.00014154,2]
[425121786,1781532642000,-620.57,0.00014175,2]
[425121787,1781532642000,-200.353548,0.00014176,2]
[425121785,1781532642000,-150.0,0.00014173,2]
[425121788,1781532642000,-219.5526394,0.00014184,2]
[425121792,1781532642000,-379.187651,0.00014199,2]
[425121790,1781532642000,-150.0,0.0001419,2]
[425121729,1781532642000,-500.0,0.00014069,2]
[425121789,1781532642000,-3408.93898034,0.00014185,2]
[425121764,1781532642000,-215.16158661,0.00014108,2]
[425121763,1781532642000,-219.5526394,0.00014108,2]
[425121791,1781532642000,-15852.00858818,0.00014192,2]
[425121760,1781532642000,-150.0,0.00014107,2]
[425121762,1781532642000,-620.57,0.00014108,2]
[425121744,1781532642000,-500.0,0.00014069,2]
[425121743,1781532642000,-500.0,0.00014069,2]
[425121742,1781532642000,-500.0,0.00014069,2]
[425121731,1781532642000,-500.0,0.00014069,2]
[425121734,1781532642000,-935.0,0.00014069,2]
[425121735,1781532642000,-935.0,0.00014069,2]
[425121736,1781532642000,-935.0,0.00014069,2]
[425121739,1781532642000,-500.0,0.00014069,2]
[425121737,1781532642000,-935.0,0.00014069,2]
[425121741,1781532642000,-500.0,0.00014069,2]
[425121740,1781532642000,-500.0,0.00014069,2]
[425121738,1781532642000,-935.0,0.00014069,2]
[425121732,1781532642000,-224.08,0.00014069,2]
[425121746,1781532642000,-150.0,0.00014074,2]
[425121761,1781532642000,-150.0,0.00014107,2]
[425121771,1781532642000,-500.0,0.00014134,2]
[425121754,1781532642000,-150.0,0.00014087,2]
[425121757,1781532642000,-150.0,0.00014095,2]
[425121745,1781532642000,-150.0,0.00014074,2]
[425121755,1781532642000,-219.5526394,0.00014093,2]
[425121749,1781532642000,-215.16158661,0.00014078,2]
[425121758,1781532642000,-257.732101,0.00014095,2]
[425121759,1781532642000,-150.0,0.00014096,2]
[425121756,1781532642000,-215.16158661,0.00014093,2]
[425121752,1781532642000,-150.0,0.00014078,2]
[425121747,1781532642000,-219.5526394,0.00014078,2]
[425121753,1781532642000,-312.15,0.00014086,2]
[425121839,1781532643000,-150.0,0.00014377,2]
[425121832,1781532643000,-150.0,0.00014335,2]
[425121824,1781532643000,-150.0,0.00014301,2]
[425121836,1781532643000,-3010.7,0.00014356,2]
[425121834,1781532643000,-150.0,0.00014344,2]
[425121828,1781532643000,-51954.80689487,0.00014326,2]
[425121830,1781532643000,-150.0,0.00014331,2]
[425121822,1781532643000,-150.0,0.00014298,2]
[425121826,1781532643000,-219.5526394,0.00014305,2]
[425121833,1781532643000,-150.0,0.00014338,2]
[425121835,1781532643000,-620.57,0.00014344,2]
[425121848,1781532643000,-150.0,0.00014424,2]
[425121843,1781532643000,-159.16600637,0.00014414,10]
[425121845,1781532643000,-150.0,0.00014419,2]
[425121842,1781532643000,-620.57,0.00014393,2]
[425121837,1781532643000,-15852.00858818,0.00014369,2]
[425121838,1781532643000,-312.15,0.0001437,2]
[425121847,1781532643000,-150.0,0.00014424,2]
[425121844,1781532643000,-309.7,0.00014418,2]
[425121841,1781532643000,-150.0,0.00014387,2]
[425121846,1781532643000,-3408.93898034,0.00014423,2]
[425121850,1781532643000,-150.0,0.0001443,2]
[425121858,1781532643000,-150.0,0.00014487,2]
[425121861,1781532643000,-500.0,0.00014516,2]
[425121825,1781532643000,-150.0,0.00014302,2]
[425121860,1781532643000,-150.0,0.00014515,2]
[425121840,1781532643000,-150.0,0.00014379,2]
[425121827,1781532643000,-312.15,0.00014309,2]
[425121807,1781532643000,-150.0,0.00014237,2]
[425121819,1781532643000,-219.5526394,0.0001429,2]
[425121859,1781532643000,-935.0,0.00014504,2]
[425121794,1781532643000,-219.5526394,0.00014199,2]
[425121795,1781532643000,-150.0,0.00014204,2]
[425121793,1781532643000,-438.920496,0.00014199,2]
[425121796,1781532643000,-6583.42920961,0.00014211,2]
[425121797,1781532643000,-219.5526394,0.00014214,2]
[425121798,1781532643000,-150.0,0.00014214,2]
[425121801,1781532643000,-150.0,0.00014217,2]
[425121802,1781532643000,-219.5526394,0.00014229,2]